bitfinex/quotes_ETHUSD_20241106
["timestamp","ask_amount","ask_price","bid_price","bid_amount"]
[1730912414625,0.2,2657.8,2656.9,0.07526948]
[1730912414793,3.63933193,2657.7,2656.9,0.07526948]
[1730912414997,3.63933193,2657.7,2656.7,12.13]
[1730912415191,3.76295,2657.5,2656.7,12.13]
[1730912415511,3.76323,2657.3,2656.7,12.13]
[1730912416022,7.40284193,2657.1,2656.4,0.7602]
[1730912416177,0.74028419,2657.0,2656.4,0.7602]
[1730912416378,3.63933193,2657.1,2656.4,0.7602]
[1730912416583,7.40294193,2657.1,2656.4,0.7602]
[1730912417379,7.40293193,2657.1,2656.4,0.7602]
[1730912417682,3.63933193,2656.5,2655.6,0.7689]
[1730912417884,0.74036119,2656.4,2655.6,0.7689]
[1730912418084,3.63933193,2656.5,2655.6,0.7689]
[1730912419026,3.7645,2656.4,2655.6,0.7689]
[1730912419182,3.63933193,2656.2,2655.6,0.7689]
[1730912419385,3.76519,2656.0,2654.8,0.8213]
[1730912419584,3.76521,2655.9,2654.8,0.8213]
[1730912419793,0.75304,2655.8,2654.8,0.8213]
[1730912420618,3.76519,2656.0,2654.8,0.8213]
[1730912420619,3.76514,2656.0,2654.8,0.8213]
[1730912420786,3.76523,2655.9,2654.8,0.8213]
[1730912421122,7.5302,2656.0,2654.9,0.0753211]
[1730912421342,3.76551,2655.7,2654.8,0.8213]
[1730912421702,8.01203265,2655.8,2654.8,0.8213]
[1730912421703,4.24655265,2655.8,2654.8,0.8213]
[1730912421898,4.56670527,2655.7,2654.8,0.8213]
[1730912422101,4.56670527,2655.7,2654.9,0.04971308]
[1730912422310,0.80117527,2655.7,2654.9,0.04971308]
[1730912422622,0.80117527,2655.7,2654.8,0.8213]
[1730912422922,0.80117527,2655.7,2655.0,0.04963961]
[1730912423130,0.80117527,2655.7,2654.9,12.17978957]
[1730912423343,0.80117527,2655.7,2655.0,0.07532117]
[1730912423833,3.76523,2655.9,2655.1,0.04948967]
[1730912424537,4.24655265,2655.8,2655.1,0.04948967]
[1730912424745,3.766,2655.4,2654.9,12.13]
[1730912425033,0.80125527,2655.3,2655.2,0.04482301]
[1730912425193,0.55,2655.8,2654.8,0.8213]
[1730912425194,3.76556,2655.7,2654.8,0.8213]
[1730912425630,3.96511,2656.0,2654.9,0.1205644]
[1730912425835,3.2,2656.0,2655.1,0.8167]
[1730912425995,0.67386369,2655.9,2655.2,0.07531718]
[1730912426200,0.2,2656.0,2655.3,0.8167]
[1730912426602,8.01198265,2655.8,2655.4,0.04128414]
[1730912426942,4.24655265,2655.8,2655.3,0.8167]
[1730912427136,0.2,2656.0,2655.3,0.8167]
[1730912427492,3.76527,2655.9,2655.3,0.8167]
[1730912427637,0.696527,2655.8,2655.3,0.8167]
[1730912427844,3.7655,2655.7,2655.3,0.8167]
[1730912428199,4.94307965,2655.8,2655.3,0.8167]
[1730912428404,3.76583,2655.5,2655.0,12.905]
[1730912428627,7.5317,2655.5,2655.4,0.03538641]
[1730912428828,4.519,2655.5,2655.0,12.905]
[1730912429299,0.75317,2655.5,2655.0,12.905]
[1730912430146,4.51896,2655.5,2655.0,12.905]
[1730912431003,3.76607,2655.3,2655.0,12.13]
[1730912431214,3.76591,2655.4,2654.6,0.7842]
[1730912431533,4.64262327,2655.3,2654.7,0.04491918]
[1730912431720,4.64262327,2655.3,2654.6,0.7842]
[1730912431920,4.64262327,2655.3,2654.7,0.04117591]
[1730912432119,0.87656327,2655.3,2654.6,0.7842]
[1730912432417,3.76647,2655.0,2654.7,0.04492265]
[1730912432616,0.376647,2654.9,2654.7,0.04492265]
[1730912432816,0.87656327,2655.3,2654.7,0.04492265]
[1730912433015,0.75317,2655.5,2654.7,0.04492265]
[1730912434065,0.75317,2655.5,2654.7,0.12025319]
[1730912434358,0.75317,2655.5,2654.7,0.04492265]
[1730912434920,0.75317,2655.5,2654.7,0.12025318]
[1730912435555,3.76591,2655.4,2654.7,0.04492265]
[1730912435714,5.02295265,2655.2,2654.7,0.04492265]
[1730912435919,8.78921265,2655.2,2654.4,0.7995]
[1730912436225,12.55554265,2655.2,2654.4,0.7995]
[1730912436431,3.76634,2655.1,2654.5,0.04147376]
[1730912436631,8.78914265,2655.2,2654.5,0.04147376]
[1730912436852,0.96657759,2655.1,2654.5,0.04147376]
[1730912437818,0.96657759,2655.1,2654.4,0.5995]
[1730912438763,4.73290759,2655.1,2654.4,0.5995]
[1730912439477,0.96657759,2655.1,2654.4,0.5995]
[1730912440862,7.31591,2655.4,2654.4,0.5995]
[1730912441023,3.0,2655.4,2654.5,0.8692332]
[1730912441229,3.76611,2655.3,2654.5,0.8692332]
[1730912441968,3.75317,2655.5,2654.6,0.89603506]
[1730912442128,3.27,2655.6,2654.6,0.89603506]
[1730912442437,3.27,2655.6,2654.8,0.8289]
[1730912442850,3.27,2655.6,2654.9,0.04487255]
[1730912443023,3.27,2655.6,2655.0,0.8114]
[1730912443341,7.03569,2655.6,2655.0,12.9414]
[1730912443667,1.08013,2655.5,2655.0,12.9414]
[1730912443868,3.27,2655.6,2655.0,12.9414]
[1730912444039,3.04,2656.0,2655.1,0.07531835]
[1730912444373,3.04,2656.0,2655.2,0.7895]
[1730912445156,3.76527,2655.9,2655.2,0.7895]
[1730912445935,3.65221806,2655.8,2655.2,0.7895]
[1730912446269,0.74174881,2655.7,2655.2,0.7895]
[1730912447137,3.76527,2655.9,2655.2,0.7895]
[1730912447868,3.65221806,2655.8,2655.2,0.7895]
[1730912448658,3.76521,2655.9,2655.2,0.7895]
[1730912450184,6.80507,2656.0,2655.2,0.7895]
[1730912450534,3.76521,2655.9,2655.2,0.7895]
[1730912450765,5.18745481,2655.9,2655.2,0.7895]
[1730912451577,1.42224481,2655.9,2655.2,0.7895]
[1730912451979,0.04,2656.0,2655.3,0.07531129]
[1730912452140,0.04,2656.0,2655.3,0.7735]
[1730912452481,0.04,2656.0,2655.5,0.8032]
[1730912452846,0.04,2656.0,2655.6,0.07530469]
[1730912453361,0.04,2656.0,2655.5,0.8032]
[1730912453783,0.04,2656.0,2655.6,0.07530475]
[1730912454272,0.04,2656.0,2655.7,0.8222]
[1730912459186,0.04,2656.0,2655.9,0.7906]
[1730912459507,0.04,2656.0,2655.9,12.9206]
[1730912460273,0.8285,2657.4,2655.9,12.68]
[1730912460524,0.8285,2657.4,2656.1,0.8261]
[1730912460818,3.764,2656.8,2656.1,0.8261]
[1730912461019,3.76425,2656.6,2656.1,0.8261]
[1730912461203,4.88207581,2656.7,2656.1,0.8261]
[1730912461529,1.11800581,2656.7,2655.7,0.8201]
[1730912461671,3.76373,2657.0,2655.5,12.13]
[1730912461672,3.0,2657.0,2655.9,0.8201]
[1730912461876,3.76407,2656.7,2655.9,0.8201]
[1730912462297,3.764,2656.8,2655.9,0.8201]
[1730912462298,7.41621806,2656.8,2655.9,0.8201]
[1730912462504,3.76427,2656.6,2655.9,0.8201]
[1730912462820,7.41679806,2656.4,2655.9,0.8201]
[1730912463023,3.65221806,2656.4,2655.9,0.8201]
[1730912463313,3.65221806,2656.4,2655.1,0.7769]
[1730912463314,7.41673806,2656.4,2655.1,0.7769]
[1730912463520,7.41673806,2656.4,2655.3,0.7769]
[1730912463521,3.65221806,2656.4,2655.3,0.7769]
[1730912464014,4.140777,2656.5,2655.5,0.7769]
[1730912464184,4.140777,2656.5,2655.2,12.13]
[1730912464185,0.4140777,2656.4,2655.7,0.7896]
[1730912464382,0.376427,2656.5,2655.7,0.7896]
[1730912465139,4.53547,2656.7,2655.7,0.7896]
[1730912465662,3.76357,2657.1,2655.8,0.07530028]
[1730912465865,4.57374,2657.2,2656.0,0.8101]
[1730912466043,4.57374,2657.2,2656.1,0.88538525]
[1730912466241,1.19892581,2657.1,2656.1,0.88538525]
[1730912466758,4.96243581,2657.1,2656.1,0.8101]
[1730912467123,1.19892581,2657.1,2656.1,0.8101]
[1730912467471,4.59634,2657.5,2656.2,0.8101]
[1730912467655,4.59634,2657.5,2656.4,0.8101]
[1730912467820,4.59634,2657.5,2656.6,0.8101]
[1730912468364,7.41501806,2657.6,2656.6,0.8101]
[1730912468721,3.65221806,2657.6,2656.6,0.8101]
[1730912468944,4.14,2657.7,2656.7,12.2052747]
[1730912469175,3.33,2657.7,2656.8,12.13]
[1730912469379,0.81,2658.0,2656.8,12.13]
[1730912469380,4.57231,2658.0,2656.9,0.8185]
[1730912470049,4.57231,2658.0,2656.6,1.30153747]
[1730912470050,4.57231,2658.0,2657.1,0.8168]
[1730912470264,0.81,2658.0,2657.1,0.8168]
[1730912470452,4.57223,2658.0,2657.1,0.8168]
[1730912471051,7.03258,2657.8,2657.1,0.8168]
[1730912471254,0.703258,2657.7,2657.1,0.8168]
[1730912471776,0.703258,2657.7,2656.9,0.7634]
[1730912471777,3.76321,2657.3,2656.9,0.7634]
[1730912472188,3.76336,2657.2,2656.2,0.7634]
[1730912472397,4.24095084,2657.3,2656.2,0.7634]
[1730912472680,3.76396,2656.8,2656.2,0.7634]
[1730912472886,3.76422,2656.6,2656.2,0.7634]
[1730912473568,7.5285,2656.6,2656.2,0.7634]
[1730912473739,3.7644,2656.5,2656.2,0.7634]
[1730912474389,3.76366,2657.0,2656.2,0.7634]
[1730912474546,0.376366,2656.9,2656.2,0.7634]
[1730912475056,8.02900508,2657.2,2656.2,0.7634]
[1730912475057,4.26550508,2657.2,2656.2,0.7634]
[1730912475384,3.7635,2657.1,2656.2,0.7634]
[1730912476644,0.50205508,2657.2,2656.2,0.7634]
[1730912476849,3.76378,2657.0,2656.2,0.7634]
[1730912477088,3.76386,2656.9,2656.2,0.7634]
[1730912477290,0.752764,2656.8,2656.2,0.7634]
[1730912477492,3.76378,2657.0,2656.2,0.7634]
[1730912477647,4.26547508,2657.2,2656.2,0.7634]
[1730912477648,3.50205508,2657.2,2656.2,0.7634]
[1730912477850,3.76352,2657.1,2656.2,0.7634]
[1730912478050,3.50205508,2657.2,2656.2,0.7634]
[1730912478356,3.7642,2656.6,2656.2,0.7634]
[1730912478543,0.752829,2656.5,2656.2,0.7634]
[1730912478746,3.76436,2656.5,2656.0,0.8023]
[1730912479167,5.05245084,2657.0,2656.0,0.8023]
[1730912479373,4.24095084,2656.7,2656.0,0.8023]
[1730912479588,3.76473,2656.3,2656.0,0.8023]
[1730912480495,3.76471,2656.3,2656.0,0.8023]
[1730912480645,4.517625,2656.3,2656.0,0.8023]
[1730912481083,0.752915,2656.3,2656.0,0.8023]
[1730912481288,3.76444,2656.5,2656.0,0.8023]
[1730912481591,0.8091,2656.6,2655.6,12.13]
[1730912481745,8.00597084,2656.1,2655.5,0.7713]
[1730912481950,3.76535,2655.8,2655.5,0.7713]
[1730912482265,4.57001,2656.1,2655.5,0.7713]
[1730912482474,4.24095084,2656.4,2655.5,0.7713]
[1730912482475,3.76478,2656.2,2655.5,0.7713]
[1730912482663,3.76498,2656.1,2655.5,0.7713]
[1730912483353,3.76514,2656.0,2655.5,0.7713]
[1730912483549,3.76529,2655.9,2655.5,0.7713]
[1730912483888,7.52946,2656.3,2655.5,0.7713]
[1730912484082,3.765,2656.1,2655.5,0.7713]
[1730912484298,3.76506,2656.0,2655.5,0.7713]
[1730912484764,3.7652,2655.9,2655.5,0.7713]
[1730912484948,3.76536,2655.8,2655.5,0.7713]
[1730912485148,3.76549,2655.7,2655.5,0.7713]
[1730912485384,3.76549,2655.7,2655.2,0.8227]
[1730912485590,4.518559,2655.7,2655.2,0.8227]
[1730912486096,4.518559,2655.7,2654.6,0.815]
[1730912486097,3.76584,2655.5,2654.6,0.815]
[1730912486304,3.76605,2655.3,2654.7,12.13]
[1730912486589,3.7662,2655.2,2654.7,12.13]
[1730912487160,3.76626,2655.2,2654.6,0.815]
[1730912487395,4.69855684,2655.2,2653.9,0.7895]
[1730912487555,3.7667,2654.9,2654.0,12.13]
[1730912487755,3.76676,2654.8,2654.1,0.04135563]
[1730912488852,3.76691,2654.7,2654.0,12.13]
[1730912489044,3.76691,2654.7,2654.2,0.04131986]
[1730912489247,3.76691,2654.7,2654.1,0.04151186]
[1730912489495,3.76691,2654.7,2654.0,12.13]
[1730912490556,0.8084,2654.9,2654.0,13.42195]
[1730912490776,3.76684,2654.8,2654.1,0.04154375]
[1730912490983,3.76691,2654.7,2654.1,0.04154375]
[1730912491692,3.76684,2654.8,2654.1,0.04154375]
[1730912493013,3.76702,2654.7,2654.1,0.04154375]
[1730912493302,3.76727,2654.5,2654.1,0.04154375]
[1730912493507,3.76754,2654.3,2654.1,0.04154375]
[1730912493691,3.76754,2654.3,2653.6,0.7602]
[1730912493866,0.7599,2654.4,2654.2,0.03603199]
[1730912494061,0.7599,2654.4,2653.6,0.7602]
[1730912494404,0.64114537,2654.4,2653.6,0.7602]
[1730912494613,0.64114537,2654.4,2653.7,0.03656806]
[1730912494788,4.40850537,2654.4,2653.7,0.03656806]
[1730912494978,0.64114537,2654.4,2653.7,0.03656806]
[1730912495202,3.0,2655.0,2653.8,0.7882]
[1730912495404,3.27,2655.3,2653.9,0.87974922]
[1730912495590,3.27,2655.3,2654.1,0.8044]
[1730912495789,3.27,2655.3,2654.2,0.84561474]
[1730912495790,7.03609,2655.3,2654.2,0.84561474]
[1730912496114,3.76624,2655.2,2654.2,0.84561474]
[1730912496689,3.76637,2655.1,2654.2,0.84561474]
[1730912496890,4.846631,2655.1,2654.2,2.14317621]
[1730912497389,1.080261,2655.1,2654.2,2.14317621]
[1730912497613,3.76629,2655.2,2654.2,2.14317621]
[1730912498697,7.03618,2655.3,2654.3,0.7684]
[1730912498890,3.7663,2655.2,2654.3,0.7684]
[1730912499192,3.76641,2655.1,2654.3,0.7684]
[1730912500108,3.76641,2655.1,2654.3,0.80948972]
[1730912500334,1.50436608,2655.1,2654.3,0.80948972]
[1730912500545,3.27,2655.3,2654.3,0.80948972]
[1730912500830,7.53251,2655.2,2654.3,0.80948972]
[1730912501015,3.76635,2655.1,2654.3,0.80948972]
[1730912501527,3.27,2655.3,2654.3,0.80948972]
[1730912501689,3.27,2655.3,2654.3,0.88483625]
[1730912501892,3.27,2655.3,2654.5,0.8069]
[1730912502114,3.0,2655.7,2654.7,0.8069]
[1730912502316,4.53259,2655.9,2654.7,0.8822324]
[1730912502487,3.76542,2655.8,2654.7,0.8822324]
[1730912502690,4.53259,2655.9,2654.7,0.8822324]
[1730912502937,9.87877508,2655.9,2654.8,2.12392324]
[1730912503106,3.76541,2655.8,2654.8,2.12392324]
[1730912503307,2.34815508,2655.9,2654.8,2.12392324]
[1730912503516,5.34815508,2655.9,2654.9,0.8227]
[1730912503836,2.34815508,2655.9,2654.9,0.8227]
[1730912504127,3.76548,2655.8,2654.9,0.8227]
[1730912505793,3.76551,2655.7,2654.9,0.8227]
[1730912506133,3.76548,2655.7,2654.9,0.8227]
[1730912506287,3.76573,2655.6,2654.9,0.8227]
[1730912506495,5.34815508,2655.9,2654.9,0.8227]
[1730912506716,0.91132951,2655.8,2654.9,0.8227]
[1730912507324,2.34815508,2655.9,2654.9,0.8227]
[1730912507628,1.58085508,2655.9,2654.9,0.8227]
[1730912508135,5.34608508,2655.9,2654.9,0.8227]
[1730912508634,1.58085508,2655.9,2654.9,0.8227]
[1730912509134,12.08987084,2656.1,2654.5,0.0753252]
[1730912509135,3.27,2656.1,2655.1,0.8001]
[1730912509297,3.27,2656.1,2655.3,0.8001]
[1730912509493,3.27,2656.1,2655.4,0.8001]
[1730912509737,3.27,2656.1,2655.6,0.8001]
[1730912509894,3.76428,2656.6,2655.7,0.8001]
[1730912510299,4.54951,2656.8,2655.7,0.8001]
[1730912510495,4.54951,2656.8,2655.8,0.8099]
[1730912510734,0.7855,2656.8,2655.8,0.8099]
[1730912510943,1.25539208,2656.8,2656.0,0.8099]
[1730912511440,7.4252,2657.1,2656.0,0.88520101]
[1730912511647,3.764,2656.8,2656.0,0.8099]
[1730912511854,4.24095084,2656.7,2656.0,0.8099]
[1730912512141,3.76429,2656.6,2656.0,0.8099]
[1730912514022,7.52809,2656.8,2656.0,0.8099]
[1730912514231,3.0,2657.0,2656.0,0.8099]
[1730912514753,6.76375,2657.0,2656.1,12.9395]
[1730912515121,10.36358,2657.1,2656.1,12.9395]
[1730912515458,10.36362,2657.1,2656.3,0.7542]
[1730912515815,6.6,2657.1,2656.3,0.7542]
[1730912516011,1.036337,2657.0,2656.3,0.7542]
[1730912517363,5.27728784,2657.0,2656.3,0.7542]
[1730912520661,1.036337,2657.0,2656.3,0.7542]
[1730912520842,3.27,2657.1,2656.3,0.7542]
[1730912521659,4.24095084,2657.6,2656.4,0.83088829]
[1730912521867,4.24095084,2657.9,2656.4,0.83088829]
[1730912522047,4.24095084,2657.9,2656.6,0.7601]
[1730912522234,0.83372508,2657.8,2656.8,0.7601]
[1730912522543,4.24095084,2657.6,2656.8,0.7601]
[1730912522749,4.24095084,2657.3,2656.8,0.7601]
[1730912523061,4.24095084,2657.3,2656.5,0.8145]
[1730912523444,3.0,2657.5,2656.5,0.8145]
[1730912523632,4.24095084,2657.6,2656.7,0.8009]
[1730912524673,8.00384084,2657.6,2656.7,0.8009]
[1730912524877,3.76293,2657.5,2656.7,0.8009]
[1730912525064,8.00375084,2657.6,2656.7,0.8009]
[1730912525579,3.76337,2657.2,2656.7,0.8009]
[1730912525778,0.80043208,2657.2,2656.7,0.8009]
[1730912526079,7.56380208,2657.2,2656.7,0.8009]
[1730912526377,7.56380208,2657.2,2654.5,0.39232679]
[1730912526378,4.24095084,2657.0,2655.8,0.7731]
[1730912526533,3.80043208,2657.2,2655.9,12.13]
[1730912526534,4.24095084,2656.6,2655.9,12.13]
[1730912526733,3.76435,2656.5,2655.9,12.13]
[1730912526971,1.17693708,2656.5,2655.9,12.13]
[1730912527330,8.00559084,2656.3,2655.9,12.13]
[1730912527533,8.00559084,2656.3,2655.8,0.7731]
[1730912527765,4.24095084,2656.3,2655.8,0.7731]
[1730912528384,7.94129708,2656.5,2655.8,0.7731]
[1730912528535,3.76416,2656.7,2655.8,0.7731]
[1730912528741,3.0,2656.6,2655.8,0.7731]
[1730912528962,6.76423,2656.6,2655.8,0.7731]
[1730912529490,3.0,2656.6,2655.8,0.7731]
[1730912529789,3.76453,2656.4,2655.8,0.7731]
[1730912530083,3.76443,2656.5,2655.8,0.7731]
[1730912530486,3.76473,2656.3,2655.8,0.7731]
[1730912530686,3.76444,2656.5,2655.8,0.7731]
[1730912531244,3.76478,2656.2,2655.8,0.7731]
[1730912531479,3.76454,2656.4,2655.8,0.7731]
[1730912531648,0.376454,2656.3,2655.8,0.7731]
[1730912532294,4.62167084,2656.6,2655.8,0.7731]
[1730912532578,4.62167084,2656.6,2655.0,12.13]
[1730912532579,3.76508,2656.0,2655.6,0.8065]
[1730912532820,3.76521,2655.9,2655.6,0.8065]
[1730912532945,3.76555,2655.7,2655.3,0.8065]
[1730912533489,3.76536,2655.8,2655.3,0.8065]
[1730912533778,4.94250508,2655.8,2655.3,0.8065]
[1730912534190,3.76599,2655.4,2654.1,0.06549469]
[1730912534395,3.76599,2655.4,2652.8,0.39325014]
[1730912534396,3.76832,2653.7,2652.1,3.21525403]
[1730912534562,3.76832,2653.7,2651.0,1.21334185]
[1730912534563,0.01,2652.3,2651.0,0.84724185]
[1730912534769,4.24095084,2651.1,2651.0,0.83724185]
[1730912535074,4.24095084,2651.1,2650.1,0.01]
[1730912535466,0.07532411,2651.0,2649.4,0.01]
[1730912535667,0.07532411,2651.0,2650.1,1.46050351]
[1730912535875,0.07532411,2651.4,2650.3,0.01]
[1730912536054,0.01,2651.9,2649.4,0.18476596]
[1730912536055,0.07532411,2651.8,2650.8,2.02661847]
[1730912536357,0.07532411,2651.8,2650.0,0.95076874]
[1730912536358,0.02,2650.3,2650.0,0.95076874]
[1730912536604,0.02,2650.3,2648.3,0.01327432]
[1730912536605,3.28,2650.3,2648.3,0.01327432]
[1730912536787,3.28,2650.3,2646.9,3.22480008]
[1730912536788,2.12997219,2650.2,2649.7,0.58234417]
[1730912537004,2.12997219,2650.2,2648.5,4.85022406]
[1730912537005,0.09434024,2650.6,2648.6,0.07547219]
[1730912537148,0.09432574,2650.8,2648.6,0.07547219]
[1730912537501,0.01,2651.3,2648.6,0.07547219]
[1730912537502,5.00679859,2651.3,2648.9,0.7573]
[1730912537822,0.09431588,2651.2,2649.0,0.0754527]
[1730912538083,5.00679859,2650.6,2649.1,0.7573]
[1730912538497,0.0943241,2650.9,2649.3,0.8122]
[1730912538681,5.00679859,2651.0,2649.0,0.08628593]
[1730912538682,5.00679859,2651.0,2649.5,0.8122]
[1730912538884,5.10111134,2651.4,2649.6,0.88544564]
[1730912539188,5.00679859,2651.4,2649.6,0.88544564]
[1730912539359,5.00679859,2651.4,2649.9,0.81]
[1730912539562,5.00679859,2651.4,2650.0,0.381]
[1730912539764,5.00679859,2651.4,2650.1,0.55]
[1730912540072,5.00679859,2651.0,2650.0,0.381]
[1730912540441,0.01,2651.5,2650.0,0.381]
[1730912540442,5.00679859,2650.6,2650.0,0.381]
[1730912540723,0.01,2651.7,2649.9,0.81]
[1730912540724,0.10433244,2651.4,2650.1,0.07546595]
[1730912540934,0.09433244,2651.4,2650.2,0.7817]
[1730912541247,0.09429762,2651.7,2650.4,0.7817]
[1730912541383,5.00679859,2651.4,2650.4,0.7817]
[1730912541587,5.00679859,2651.0,2650.4,0.7817]
[1730912542526,0.09431082,2650.9,2650.4,0.7817]
[1730912542722,5.00679859,2650.6,2650.4,0.7817]
[1730912543034,0.09431803,2651.2,2650.4,0.7817]
[1730912543621,5.00679859,2650.9,2650.4,0.7817]
[1730912543830,0.09431769,2650.8,2650.4,0.7817]
[1730912544030,0.09431769,2650.8,2649.1,1.3066]
[1730912544245,0.01,2650.4,2649.1,0.7566]
[1730912544408,5.00679859,2650.1,2649.1,0.7566]
[1730912544607,0.09434406,2650.0,2649.1,0.7566]
[1730912544933,8.33679859,2650.5,2649.2,0.07547528]
[1730912545123,0.0943441,2650.4,2649.2,0.07547528]
[1730912545441,0.01,2649.9,2649.2,0.07546599]
[1730912545595,0.09435935,2649.9,2649.1,0.07548748]
[1730912545796,0.09435935,2649.9,2649.0,0.754]
[1730912546644,0.01,2650.3,2649.1,0.07548335]
[1730912546645,0.09435419,2650.0,2649.1,0.07548335]
[1730912546815,0.09435419,2650.0,2649.0,0.754]
[1730912546816,0.09435419,2650.3,2649.0,0.754]
[1730912546999,5.00679859,2650.1,2649.1,0.55]
[1730912547211,0.10434178,2650.0,2649.1,0.55]
[1730912547502,5.00679859,2649.7,2649.0,0.754]
[1730912547882,0.01,2649.4,2649.0,0.754]
[1730912547999,0.01,2649.4,2646.0,5.0]
[1730912548000,0.01,2649.4,2647.5,0.7837]
[1730912548198,0.01,2649.4,2647.1,2.75240935]
[1730912548199,5.00679859,2649.3,2647.7,0.7837]
[1730912548455,0.10437575,2649.2,2647.7,0.87002829]
[1730912548941,0.11437575,2649.2,2647.7,0.87002829]
[1730912549448,0.50267986,2649.3,2647.8,0.07550802]
[1730912549652,5.00679859,2649.3,2647.8,0.07550802]
[1730912549839,0.05638208,2649.2,2647.8,0.07550802]
[1730912550042,0.05638208,2649.2,2647.8,0.07550746]
[1730912550371,7.50345101,2649.8,2648.1,0.7876]
[1730912550372,5.06318067,2649.7,2648.1,0.7876]
[1730912550526,0.05638208,2649.7,2648.3,0.7876]
[1730912550730,5.00679859,2650.5,2649.2,0.55]
[1730912550939,5.00679859,2650.5,2649.4,0.55]
[1730912550940,0.05638208,2650.4,2649.4,0.55]
[1730912551238,0.05638208,2650.4,2649.5,0.07547053]
[1730912551451,0.05638208,2650.4,2649.4,0.55]
[1730912551860,0.05638208,2650.4,2649.2,0.55]
[1730912552060,0.05638208,2650.9,2649.2,0.55]
[1730912552272,0.64329015,2650.9,2649.2,0.55]
[1730912553077,5.00679859,2650.6,2649.2,0.55]
[1730912553243,0.05638208,2650.5,2649.2,0.55]
[1730912553442,5.00679859,2650.6,2649.2,0.55]
[1730912553646,5.81849859,2650.2,2649.1,0.7776]
[1730912553866,5.00679859,2649.8,2648.6,0.8297]
[1730912554032,5.00679859,2649.4,2647.4,0.8297]
[1730912554235,0.05638208,2649.3,2647.6,0.8297]
[1730912554576,0.05638208,2649.3,2647.7,0.16183845]
[1730912554736,0.05638208,2649.3,2647.8,0.08632503]
[1730912554937,0.56270015,2649.3,2647.9,0.07551017]
[1730912555140,0.56270015,2649.3,2648.0,0.814]
[1730912555447,0.56270015,2649.3,2648.1,0.07551018]
[1730912555653,0.05638208,2649.3,2648.2,0.55]
[1730912555883,0.05638208,2649.7,2648.4,0.55]
[1730912556251,0.05638208,2649.7,2648.5,0.07549993]
[1730912557110,0.05638208,2649.7,2648.4,0.55]
[1730912557422,0.05638208,2649.7,2648.1,3.0]
[1730912557584,0.05638208,2649.7,2646.3,0.625]
[1730912557585,0.03,2646.4,2646.3,0.625]
[1730912557765,0.03,2646.4,2644.1,0.7596]
[1730912557766,0.01,2645.4,2644.1,0.7596]
[1730912558168,5.00679859,2645.5,2644.1,0.7596]
[1730912558559,0.65451398,2645.4,2644.1,0.7596]
[1730912559096,5.11131864,2645.5,2644.1,0.7596]
[1730912559311,5.9504505,2645.5,2644.1,0.7596]
[1730912559603,0.09452005,2645.5,2644.2,0.07561444]
[1730912559758,0.01,2646.0,2645.2,0.7502]
[1730912560100,0.09449952,2646.0,2645.2,0.7502]
[1730912560408,0.10449952,2646.0,2645.2,0.7502]
[1730912560759,0.09449952,2646.0,2645.2,0.7502]
[1730912561195,5.00679859,2645.8,2645.2,0.7502]
[1730912561401,0.0944969,2645.7,2645.2,0.7502]
[1730912561716,0.10449786,2646.1,2645.2,0.7502]
[1730912561883,0.6816275,2646.1,2645.2,0.7502]
[1730912562505,0.11449786,2646.1,2645.2,0.7502]
[1730912563069,0.55,2646.0,2645.2,0.7502]
[1730912563273,0.09449933,2645.9,2645.2,0.7502]
[1730912563470,0.11449927,2646.1,2645.2,0.7502]
[1730912563871,0.50727392,2646.1,2645.2,0.7502]
[1730912564308,1.11368117,2646.1,2645.2,0.7502]
[1730912564819,0.01,2647.2,2645.5,0.802]
[1730912565021,0.01,2647.0,2645.6,0.07556722]
[1730912565327,5.01679859,2646.5,2645.5,0.802]
[1730912565618,0.0944833,2646.4,2645.5,0.802]
[1730912565788,0.0944833,2646.4,2645.6,0.07558746]
[1730912565986,5.00679859,2646.5,2645.5,0.802]
[1730912565987,5.00679859,2646.5,2645.7,0.07558067]
[1730912566173,0.09447324,2646.4,2645.5,0.802]
[1730912567003,0.09447324,2646.4,2645.6,0.07558325]
[1730912567209,0.09447324,2646.4,2645.7,0.03652964]
[1730912567416,0.094474,2646.4,2645.5,0.802]
[1730912567575,0.01,2646.6,2645.6,0.0755792]
[1730912568080,0.09447409,2646.7,2645.6,0.0755792]
[1730912568420,0.09447409,2646.7,2645.5,0.802]
[1730912568576,0.09447409,2646.7,2645.6,0.04240737]
[1730912568773,0.09447409,2646.7,2645.5,0.802]
[1730912568989,0.10446704,2646.8,2645.5,0.802]
[1730912569623,0.09446704,2646.8,2645.5,0.802]
[1730912570121,0.10446704,2646.8,2645.5,0.802]
[1730912570419,0.09446704,2646.8,2645.5,0.802]
[1730912570674,0.39272693,2647.4,2645.8,0.55]
[1730912570843,2.15693807,2647.6,2646.1,0.7689]
[1730912571171,5.1012336,2647.5,2646.1,0.7689]
[1730912571471,5.81960696,2647.5,2646.1,0.7689]
[1730912571832,5.00679859,2647.1,2646.1,0.7689]
[1730912572027,0.11445479,2647.0,2646.1,0.7689]
[1730912572529,0.09446518,2647.3,2646.2,0.07557214]
[1730912572784,0.09444391,2647.5,2646.3,0.7597]
[1730912573074,2.06250001,2647.6,2646.4,0.83524533]
[1730912573228,2.06250001,2647.6,2646.5,0.07554253]
[1730912573428,2.06250001,2647.6,2646.0,0.48950584]
[1730912573429,2.06250001,2647.6,2646.6,0.7597]
[1730912573846,2.06250001,2647.6,2646.7,0.07554193]
[1730912574030,2.06250001,2647.6,2646.7,0.55]
[1730912574244,2.06250001,2647.6,2646.6,0.7597]
[1730912574851,0.09443271,2647.5,2646.6,0.7597]
[1730912575268,0.31012598,2647.5,2646.6,0.7597]
[1730912575741,2.06250001,2647.6,2646.7,0.07555399]
[1730912575945,2.06250001,2647.6,2646.6,0.7597]
[1730912577683,2.06250001,2647.6,2646.8,0.7998]